fUSD/lending_fUSD_20250226
["ID","MTS","AMOUNT","RATE_DAILY","PERIOD"]
[354614718,1740595922172,-912.19,0.00038356,14]
[354614719,1740595922182,-551.46,0.00038356,14]
[354614720,1740595922192,-355.64651146,0.00038356,14]
[354614721,1740595922203,-3271.55,0.00038356,14]
[354614722,1740595922213,-3117.32,0.00038356,14]
[354614723,1740595922223,-500.0,0.00038356,14]
[354614724,1740595922233,-896.05,0.00038356,14]
[354614726,1740595922242,-1469.5,0.00038356,14]
[354614728,1740595922252,-500.0,0.00038356,14]
[354614730,1740595922262,-500.0,0.00038356,14]
[354614732,1740595922272,-500.0,0.00038356,14]
[354614734,1740595922282,-1970.34,0.00038356,14]
[354614736,1740595922292,-1219.67,0.00038356,14]
[354614738,1740595922301,-500.0,0.00038356,14]
[354614740,1740595922311,-500.0,0.00038356,14]
[354614742,1740595922321,-1258.23,0.00038356,14]
[354614744,1740595922331,-1003.98,0.00038356,14]
[354614746,1740595922342,-802.71,0.00038356,14]
[354614748,1740595922351,-1048.22,0.00038356,14]
[354614750,1740595922362,-500.0,0.00038356,14]
[354614752,1740595922374,-12754.69,0.00038356,14]
[354614754,1740595922384,-500.0,0.00038356,14]
[354614756,1740595922394,-760.48,0.00038356,14]
[354614758,1740595922404,-1559.74,0.00038356,14]
[354614760,1740595922413,-1039.17,0.00038356,14]
[354614762,1740595922423,-968.47,0.00038356,14]
[354614763,1740595922431,-975.3,0.00038356,14]
[354614765,1740595922441,-884.61,0.00038356,14]
[354614767,1740595922450,-581.51,0.00038356,14]
[354614769,1740595922460,-677.65,0.00038356,14]
[354614771,1740595922470,-559.35,0.00038356,14]
[354614773,1740595922481,-500.0,0.00038356,14]
[354614775,1740595922491,-1068.0,0.00038356,14]
[354614777,1740595922501,-1472.3,0.00038356,14]
[354614779,1740595922511,-1096.63,0.00038356,14]
[354614781,1740595922519,-882.85,0.00038356,14]
[354614783,1740595922529,-1708.56,0.00038356,14]
[354614785,1740595922538,-505.62,0.00038356,14]
[354614787,1740595922548,-500.0,0.00038356,14]
[354614789,1740595922558,-966.9,0.00038356,14]
[354614791,1740595922567,-1141.53,0.00038356,7]
[354614793,1740595922576,-1382.5,0.00038356,14]
[354614795,1740595922586,-811.04,0.00038356,14]
[354614797,1740595922595,-669.94,0.00038356,14]
[354614799,1740595922604,-691.77,0.00038356,14]
[354614801,1740595922614,-530.0,0.00038356,14]
[354614803,1740595922626,-1910.93,0.00038356,14]
[354614805,1740595922635,-500.0,0.00038356,14]
[354614807,1740595922644,-500.0,0.00038356,14]
[354614809,1740595922653,-874.49,0.00038356,14]
[354614811,1740595922662,-776.22,0.00038356,14]
[354614813,1740595922671,-2493.41,0.00038356,14]
[354614815,1740595922681,-811.0,0.00038356,14]
[354614817,1740595922690,-2143.28,0.00038356,14]
[354614819,1740595922699,-2617.36,0.00038356,14]
[354614821,1740595922708,-1621.78,0.00038356,14]
[354614822,1740595922718,-500.0,0.00038356,14]
[354614824,1740595922728,-500.0,0.00038356,14]
[354614826,1740595922738,-2319.53,0.00038356,14]
[354614828,1740595922747,-500.0,0.00038356,14]
[354614831,1740595922757,-500.0,0.00038356,14]
[354614832,1740595922767,-529.04,0.00038356,14]
[354614835,1740595922777,-1163.2,0.00038356,14]
[354614836,1740595922787,-768.45,0.00038356,14]
[354614838,1740595922797,-500.0,0.00038356,14]
[354614840,1740595922807,-500.0,0.00038356,14]
[354614842,1740595922817,-500.0,0.00038356,14]
[354614844,1740595922826,-500.0,0.00038356,14]
[354614846,1740595922836,-911.1,0.00038356,14]
[354614848,1740595922846,-1280.98,0.00038356,14]
[354614850,1740595922855,-2143.46,0.00038356,14]
[354614852,1740595922867,-500.0,0.00038356,14]
[354614854,1740595922878,-873.58,0.00038356,14]
[354614856,1740595922887,-1855.75,0.00038356,14]
[354614858,1740595922897,-939.46,0.00038356,14]
[354614860,1740595922907,-500.0,0.00038356,14]
[354614862,1740595922917,-500.0,0.00038356,14]
[354614864,1740595922927,-1902.32,0.00038356,14]
[354614866,1740595922936,-500.0,0.00038356,14]
[354614868,1740595922945,-1142.01,0.00038356,14]
[354614870,1740595922956,-938.37,0.00038356,14]
[354614872,1740595922967,-800.79,0.00038356,14]
[354614874,1740595922977,-512.47,0.00038356,14]
[354614876,1740595922987,-2507.28,0.00038356,2]
[354614878,1740595923001,-731.9,0.00038356,14]
[354614880,1740595923013,-500.0,0.00038356,14]
[354614883,1740595923023,-1981.71,0.00038356,14]
[354614884,1740595923033,-1276.51,0.00038356,14]
[354614886,1740595923044,-708.24,0.00038356,14]
[354614888,1740595923055,-500.0,0.00038356,14]
[354614891,1740595923066,-2733.74,0.00038356,14]
[354614893,1740595923078,-2252.01,0.00038356,14]
[354614895,1740595923090,-891.14,0.00038356,14]
[354614897,1740595923101,-500.0,0.00038356,14]
[354614899,1740595923112,-642.98,0.00038356,14]
[354614901,1740595923124,-552.36,0.00038356,14]
[354614903,1740595923134,-630.12,0.00038356,14]
[354614905,1740595923144,-500.0,0.00038356,14]
[354614907,1740595923154,-1991.31,0.00038356,14]
[354614909,1740595923165,-1022.27,0.00038356,14]
[354614911,1740595923175,-1294.07,0.00038356,14]
[354614913,1740595923186,-1853.21,0.00038356,14]
[354614915,1740595923197,-630.96,0.00038356,14]
[354614917,1740595923208,-1573.28,0.00038356,14]
[354614919,1740595923219,-2426.57,0.00038356,14]
[354614921,1740595923229,-2490.78,0.00038356,14]
[354614923,1740595923240,-1150.32,0.00038356,14]
[354614925,1740595923251,-715.02,0.00038356,14]
[354614927,1740595923261,-3484.94,0.00038356,14]
[354614929,1740595923272,-500.0,0.00038356,14]
[354614931,1740595923283,-2771.33,0.00038356,14]
[354614933,1740595923294,-500.0,0.00038356,14]
[354614935,1740595923306,-1596.62,0.00038356,14]
[354614937,1740595923317,-1876.78,0.00038356,14]
[354614939,1740595923327,-1560.4,0.00038356,14]
[354614941,1740595923337,-6192.85,0.00038356,14]
[354614943,1740595923347,-647.32,0.00038356,14]
[354614945,1740595923357,-500.0,0.00038356,14]
[354614947,1740595923367,-1726.29,0.00038356,14]
[354614949,1740595923379,-2725.95,0.00038356,14]
[354614951,1740595923389,-1676.26,0.00038356,14]
[354614953,1740595923399,-563.72,0.00038356,14]
[354614955,1740595923409,-944.42,0.00038356,14]
[354614957,1740595923419,-3837.57,0.00038356,14]
[354614959,1740595923429,-500.0,0.00038356,14]
[354614961,1740595923439,-1361.35,0.00038356,14]
[354614963,1740595923450,-1302.57,0.00038356,14]
[354614965,1740595923460,-688.53,0.00038356,14]
[354614967,1740595923469,-11693.75,0.00038356,14]
[354614969,1740595923480,-2812.52,0.00038356,14]
[354614971,1740595923490,-861.86,0.00038356,14]
[354614973,1740595923500,-1132.99,0.00038356,14]
[354614975,1740595923511,-3063.11,0.00038356,14]
[354614977,1740595923521,-2332.02,0.00038356,14]
[354614979,1740595923531,-3032.5,0.00038356,14]
[354614981,1740595923541,-1403.52,0.00038356,14]
[354614983,1740595923551,-2514.92,0.00038356,14]
[354614985,1740595923560,-840.17,0.00038356,14]
[354614987,1740595923570,-3285.15,0.00038356,14]
[354614989,1740595923579,-1217.25,0.00038356,14]
[354614991,1740595923589,-2864.92,0.00038356,14]
[354614993,1740595923598,-829.58,0.00038356,14]
[354614996,1740595923609,-521.32,0.00038356,14]
[354614998,1740595923618,-1548.49,0.00038356,14]
[354615000,1740595923629,-1797.4,0.00038356,14]
[354615002,1740595923639,-500.0,0.00038356,14]
[354615004,1740595923649,-3783.79,0.00038356,14]
[354615006,1740595923659,-500.0,0.00038356,14]
[354615008,1740595923669,-577.91,0.00038356,14]
[354615010,1740595923678,-1141.09,0.00038356,14]
[354615012,1740595923688,-6297.9,0.00038356,14]
[354615014,1740595923698,-2194.13,0.00038356,14]
[354615016,1740595923708,-2625.14,0.00038356,14]
[354615018,1740595923718,-1289.77,0.00038356,14]
[354615020,1740595923727,-564.43,0.00038356,14]
[354615022,1740595923736,-2622.68,0.00038356,14]
[354615024,1740595923747,-3149.85,0.00038356,14]
[354615026,1740595923756,-806.4,0.00038356,14]
[354615028,1740595923767,-2632.85,0.00038356,14]
[354615030,1740595923778,-2112.2,0.00038356,14]
[354615032,1740595923787,-3833.32,0.00038356,14]
[354615034,1740595923797,-1648.8,0.00038356,14]
[354615036,1740595923807,-500.0,0.00038356,14]
[354615038,1740595923817,-5487.93,0.00038356,14]
[354615040,1740595923827,-2311.59,0.00038356,14]
[354615042,1740595923837,-974.58,0.00038356,14]
[354615044,1740595923846,-565.43,0.00038356,14]
[354615046,1740595923856,-1343.0,0.00038356,14]
[354615048,1740595923866,-11841.49,0.00038356,14]
[354615050,1740595923880,-567.13,0.00038356,14]
[354615052,1740595923890,-3413.54,0.00038356,14]
[354615054,1740595923900,-1833.27,0.00038356,14]
[354615056,1740595923910,-995.26,0.00038356,14]
[354615058,1740595923921,-1238.69,0.00038356,14]
[354615060,1740595923932,-1700.63,0.00038356,14]
[354615062,1740595923942,-3517.26,0.00038356,14]
[354615064,1740595923954,-7439.57,0.00038356,14]
[354615066,1740595923968,-2752.94,0.00038356,14]
[354615068,1740595923979,-4507.25,0.00038356,14]
[354615071,1740595923990,-1862.26,0.00038356,14]
[354615073,1740595924003,-1154.79,0.00038356,14]
[354615075,1740595924015,-639.34,0.00038356,14]
[354615077,1740595924027,-1572.85,0.00038356,14]
[354615078,1740595924038,-500.0,0.00038356,14]
[354615081,1740595924049,-3421.4,0.00038356,14]
[354615083,1740595924059,-1778.87,0.00038356,14]
[354615085,1740595924070,-1616.96,0.00038356,14]
[354615087,1740595924081,-696.16,0.00038356,14]
[354615089,1740595924092,-9182.73,0.00038356,14]
[354615091,1740595924102,-682.72,0.00038356,14]
[354615093,1740595924113,-683.41,0.00038356,14]
[354615095,1740595924126,-6709.93,0.00038356,14]
[354615097,1740595924137,-4316.65,0.00038356,14]
[354615099,1740595924147,-682.23,0.00038356,14]
[354615101,1740595924157,-546.58,0.00038356,14]
[354615103,1740595924169,-3317.95,0.00038356,14]
[354615105,1740595924180,-1576.59,0.00038356,14]
[354615107,1740595924191,-604.02,0.00038356,14]
[354615109,1740595924201,-500.0,0.00038356,14]
[354615111,1740595924212,-876.15,0.00038356,14]
[354615113,1740595924222,-1898.38,0.00038356,14]
[354615115,1740595924232,-3418.9,0.00038356,14]
[354615117,1740595924242,-749.16,0.00038356,14]
[354615119,1740595924253,-500.0,0.00038356,14]
[354615121,1740595924263,-2938.03,0.00038356,14]
[354615123,1740595924273,-1228.02,0.00038356,14]
[354615126,1740595924283,-2258.95,0.00038356,14]
[354615128,1740595924293,-1052.77,0.00038356,14]
[354615130,1740595924303,-500.0,0.00038356,14]
[354615132,1740595924312,-932.43,0.00038356,14]
[354615134,1740595924322,-1087.18,0.00038356,14]
[354615136,1740595924333,-3770.5,0.00038356,14]
[354615138,1740595924343,-4443.37,0.00038356,14]
[354615140,1740595924353,-4370.98,0.00038356,14]
[354615142,1740595924363,-841.55,0.00038356,14]
[354615144,1740595924376,-1077.8,0.00038356,14]
[354615146,1740595924387,-1662.55,0.00038356,14]
[354615148,1740595924397,-1684.75,0.00038356,14]
[354615150,1740595924407,-732.3,0.00038356,14]
[354615152,1740595924418,-669.42,0.00038356,14]
[354615154,1740595924428,-2153.43,0.00038356,14]
[354615156,1740595924438,-2455.03,0.00038356,14]
[354615158,1740595924448,-500.0,0.00038356,14]
[354615160,1740595924458,-555.94,0.00038356,14]
[354615162,1740595924468,-8707.22,0.00038356,14]
[354615164,1740595924478,-1962.86,0.00038356,14]
[354615166,1740595924487,-661.77,0.00038356,14]
[354615168,1740595924497,-1465.58,0.00038356,14]
[354615169,1740595924506,-14121.36,0.00038356,14]
[354615170,1740595924516,-500.0,0.00038356,14]
[354615171,1740595924526,-3029.66,0.00038356,14]
[354615172,1740595924536,-3158.55,0.00038356,14]
[354615173,1740595924547,-1124.82,0.00038356,14]
[354615174,1740595924557,-677.06,0.00038356,14]
[354615175,1740595924567,-1234.59,0.00038356,14]
[354615176,1740595924577,-1087.29,0.00038356,14]
[354615177,1740595924586,-1184.83,0.00038356,14]
[354615178,1740595924598,-766.23,0.00038356,14]
[354615179,1740595924608,-1001.3,0.00038356,14]
[354615180,1740595924619,-617.69,0.00038356,14]
[354615182,1740595924633,-1731.67,0.00038356,14]
[354615184,1740595924644,-3138.97,0.00038356,14]
[354615186,1740595924655,-500.0,0.00038356,14]
[354615188,1740595924666,-527.05,0.00038356,14]
[354615190,1740595924676,-1244.63,0.00038356,14]
[354615192,1740595924688,-850.11,0.00038356,14]
[354615194,1740595924698,-2099.68,0.00038356,14]
[354615196,1740595924709,-1394.32,0.00038356,14]
[354615198,1740595924720,-3802.94,0.00038356,14]
[354615200,1740595924730,-1086.92,0.00038356,14]
[354615203,1740595924741,-1256.63,0.00038356,14]
[354615205,1740595924752,-1776.24,0.00038356,14]
[354615207,1740595924762,-772.03,0.00038356,14]
[354615209,1740595924772,-500.0,0.00038356,14]
[354615211,1740595924783,-773.62,0.00038356,14]
[354615213,1740595924793,-666.36,0.00038356,14]
[354615215,1740595924803,-500.0,0.00038356,14]
[354615217,1740595924813,-1317.17,0.00038356,14]
[354615219,1740595924822,-500.0,0.00038356,14]
[354615221,1740595924833,-500.0,0.00038356,14]
[354615223,1740595924842,-2961.3,0.00038356,14]
[354615225,1740595924852,-4383.06,0.00038356,14]
[354615227,1740595924861,-1507.85,0.00038356,14]
[354615229,1740595924874,-1264.32,0.00038356,14]
[354615231,1740595924884,-1388.89,0.00038356,14]
[354615233,1740595924894,-556.93,0.00038356,14]
[354615235,1740595924903,-561.98,0.00038356,14]
[354615237,1740595924913,-3155.81,0.00038356,14]
[354615239,1740595924923,-2270.77,0.00038356,14]
[354615241,1740595924934,-593.99,0.00038356,14]
[354615243,1740595924944,-174.68190841,0.00038393,2]
[354615245,1740595924954,-311.49730632,0.00038393,2]
[354615247,1740595924967,-264.27380582,0.00038393,2]
[354615249,1740595924976,-17799.9819,0.00038393,2]
[354615251,1740595924987,-1000.0,0.00038417,2]
[354615253,1740595925000,-247.53,0.00038443,2]
[354615255,1740595925011,-8530.62005518,0.00038482,2]
[354615257,1740595925021,-2000.0,0.0003853,120]
[354615259,1740595925033,-636.16374804,0.0003853,2]
[354615262,1740595925043,-2142.0,0.0003863,14]
[354615264,1740595925054,-1232.0,0.0003863,14]
[354615266,1740595925064,-151.0,0.0003863,14]
[354615268,1740595925075,-672.636069,0.0003863,14]
[354615270,1740595925085,-500.0,0.0003863,14]
[354615272,1740595925095,-1501.590989,0.0003863,14]
[354615274,1740595925105,-676.71,0.0003863,14]
[354615297,1740595925310,-500.0,0.0003863,14]
[354615300,1740595925347,-870.39,0.0003863,14]
[354615302,1740595925358,-1090.2,0.0003863,14]
[354615304,1740595925368,-1069.27,0.0003863,14]
[354615306,1740595925379,-814.89,0.0003863,14]
[354615308,1740595925389,-500.0,0.0003863,14]
[354615310,1740595925398,-500.0,0.0003863,14]
[354615312,1740595925407,-1150.39,0.0003863,14]
[354615314,1740595925417,-500.0,0.0003863,14]
[354615316,1740595925426,-500.0,0.0003863,14]
[354615318,1740595925436,-264.78893683,0.0003863,14]
[354615320,1740595925446,-701.36,0.0003863,14]
[354615322,1740595925456,-841.82,0.0003863,14]
[354615324,1740595925466,-500.0,0.0003863,14]
[354615326,1740595925476,-670.19,0.0003863,14]
[354615328,1740595925485,-300.0,0.0003863,14]
[354615330,1740595925495,-1844.05,0.0003863,14]
[354615332,1740595925505,-500.0,0.0003863,14]
[354615334,1740595925515,-747.92,0.0003863,14]
[354615336,1740595925524,-835.83,0.0003863,14]
[354615338,1740595925534,-738.6,0.0003863,14]
[354615340,1740595925543,-1533.87,0.0003863,14]
[354615342,1740595925553,-1414.25,0.0003863,14]
[354615344,1740595925562,-865.08,0.0003863,14]
[354615346,1740595925571,-633.98,0.0003863,14]
[354615348,1740595925581,-600.33,0.0003863,14]
[354615350,1740595925591,-548.29948463,0.0003863,14]
[354615352,1740595925600,-500.0,0.0003863,14]
[354615354,1740595925610,-580.36,0.0003863,14]
[354615356,1740595925619,-742.35,0.0003863,14]
[354615358,1740595925632,-732.49,0.0003863,14]
[354615360,1740595925643,-527.1,0.0003863,14]
[354615362,1740595925653,-500.0,0.0003863,14]
[354615364,1740595925663,-935.03,0.0003863,14]
[354615366,1740595925672,-543.41,0.0003863,14]
[354615368,1740595925682,-500.0,0.0003863,14]
[354615370,1740595925691,-581.31,0.0003863,14]
[354615372,1740595925701,-689.42,0.0003863,14]
[354615374,1740595925711,-689.49,0.0003863,14]
[354615376,1740595925720,-571.34,0.0003863,14]
[354615378,1740595925729,-696.87,0.0003863,14]
[354615380,1740595925739,-1290.39,0.0003863,14]
[354615382,1740595925749,-546.44,0.0003863,14]
[354615384,1740595925758,-500.0,0.0003863,14]
[354615386,1740595925768,-594.86,0.0003863,14]
[354615388,1740595925779,-635.18,0.0003863,14]
[354615391,1740595925788,-858.4,0.0003863,14]
[354615393,1740595925797,-617.43,0.0003863,14]
[354615394,1740595925807,-500.0,0.0003863,14]
[354615396,1740595925816,-665.21,0.0003863,14]
[354615398,1740595925826,-500.0,0.0003863,14]
[354615400,1740595925836,-1850.02,0.0003863,14]
[354615402,1740595925847,-463.86761386,0.0003863,14]
[354615405,1740595925856,-1161.63,0.0003863,14]
[354615406,1740595925869,-1036.04,0.0003863,14]
[354615408,1740595925883,-2240.29,0.0003863,14]
[354615410,1740595925892,-500.0,0.0003863,14]
[354615412,1740595925902,-500.0,0.0003863,14]
[354615414,1740595925912,-608.93,0.0003863,14]
[354615416,1740595925922,-2310.8,0.0003863,14]
[354615419,1740595925932,-500.0,0.0003863,14]
[354615420,1740595925942,-500.0,0.0003863,14]
[354615423,1740595925953,-1018.81,0.0003863,14]
[354615425,1740595925964,-500.0,0.0003863,14]
[354615426,1740595925974,-871.69,0.0003863,14]
[354615428,1740595925984,-500.0,0.0003863,14]
[354615430,1740595925996,-1006.27,0.0003863,14]
[354615433,1740595926007,-595.91,0.0003863,14]
[354615435,1740595926018,-1116.49,0.0003863,14]
[354615437,1740595926028,-641.45,0.0003863,14]
[354615439,1740595926038,-500.0,0.0003863,14]
[354615441,1740595926048,-772.83,0.0003863,14]
[354615443,1740595926058,-1308.99,0.0003863,14]
[354615445,1740595926069,-935.7,0.0003863,14]
[354615447,1740595926079,-872.15,0.0003863,14]
[354615449,1740595926089,-500.0,0.0003863,14]
[354615451,1740595926099,-500.0,0.0003863,14]
[354615452,1740595926108,-649.25,0.0003863,14]
[354615454,1740595926118,-500.0,0.0003863,14]
[354615456,1740595926131,-1082.33,0.0003863,14]
[354615459,1740595926140,-513.39,0.0003863,14]
[354615461,1740595926149,-500.0,0.0003863,14]
[354615462,1740595926159,-1176.81,0.0003863,14]
[354615465,1740595926169,-1686.11,0.0003863,14]
[354615467,1740595926179,-538.09,0.0003863,14]
[354615469,1740595926189,-547.24,0.0003863,14]
[354615471,1740595926198,-811.61,0.0003863,14]
[354615473,1740595926208,-1804.38,0.0003863,14]
[354615475,1740595926218,-969.08,0.0003863,14]
[354615477,1740595926228,-2234.9,0.0003863,14]
[354615479,1740595926239,-877.13,0.0003863,14]
[354615481,1740595926248,-582.64,0.0003863,14]
[354615483,1740595926259,-500.0,0.0003863,14]
[354615485,1740595926269,-197.75935328,0.0003863,14]
[354615487,1740595926280,-500.0,0.0003863,14]
[354615489,1740595926290,-500.0,0.0003863,14]
[354615491,1740595926300,-1855.35,0.0003863,14]
[354615493,1740595926310,-1019.59,0.0003863,14]
[354615495,1740595926320,-2120.11,0.0003863,14]
[354615497,1740595926330,-1021.29,0.0003863,14]
[354615499,1740595926340,-1613.94,0.0003863,14]
[354615501,1740595926350,-572.27,0.0003863,14]
[354615503,1740595926360,-1105.78,0.0003863,14]
[354615505,1740595926369,-500.0,0.0003863,14]
[354615507,1740595926384,-982.48,0.0003863,14]
[354615510,1740595926395,-2258.29,0.0003863,14]
[354615512,1740595926405,-500.0,0.0003863,14]
[354615514,1740595926415,-500.0,0.0003863,14]
[354615516,1740595926425,-1496.14,0.0003863,14]
[354615518,1740595926435,-782.62,0.0003863,14]
[354615520,1740595926446,-1313.98,0.0003863,14]
[354615522,1740595926457,-633.15,0.0003863,14]
[354615524,1740595926467,-500.0,0.0003863,14]
[354615526,1740595926478,-1614.67,0.0003863,14]
[354615528,1740595926488,-777.94,0.0003863,14]
[354615530,1740595926499,-1119.74,0.0003863,14]
[354615532,1740595926509,-630.05,0.0003863,14]
[354615534,1740595926519,-500.0,0.0003863,14]
[354615536,1740595926529,-1550.01,0.0003863,14]
[354615538,1740595926540,-500.0,0.0003863,14]
[354615540,1740595926550,-898.54,0.0003863,14]
[354615542,1740595926561,-986.29,0.0003863,14]
[354615544,1740595926571,-666.5,0.0003863,14]
[354615546,1740595926581,-1800.45,0.0003863,14]
[354615548,1740595926591,-1038.19,0.0003863,14]
[354615550,1740595926601,-722.35,0.0003863,14]
[354615552,1740595926611,-777.79,0.0003863,14]
[354615554,1740595926621,-1016.47,0.0003863,14]
[354615556,1740595926633,-583.31,0.0003863,14]
[354615558,1740595926643,-746.65,0.0003863,14]
[354615561,1740595926653,-529.67,0.0003863,14]
[354615562,1740595926662,-500.0,0.0003863,14]
[354615564,1740595926672,-500.0,0.0003863,14]
[354615565,1740595926682,-806.05,0.0003863,14]
[354615566,1740595926691,-886.7,0.0003863,14]
[354615567,1740595926701,-820.28,0.0003863,14]
[354615568,1740595926711,-1501.14,0.0003863,14]
[354615569,1740595926720,-500.0,0.0003863,14]
[354615570,1740595926730,-921.34,0.0003863,14]
[354615571,1740595926739,-500.0,0.0003863,14]
[354615572,1740595926748,-699.59,0.0003863,14]
[354615573,1740595926757,-1003.76,0.0003863,14]
[354615574,1740595926767,-500.0,0.0003863,14]
[354615575,1740595926776,-1495.63,0.0003863,14]
[354615576,1740595926785,-834.44,0.0003863,14]
[354615578,1740595926795,-831.3,0.0003863,14]
[354615580,1740595926805,-675.74,0.0003863,14]
[354615582,1740595926814,-917.03,0.0003863,14]
[354615584,1740595926824,-551.68,0.0003863,14]
[354615586,1740595926834,-681.62,0.0003863,14]
[354615588,1740595926844,-1958.47,0.0003863,14]
[354615590,1740595926855,-1067.6,0.0003863,14]
[354615592,1740595926866,-500.0,0.0003863,14]
[354615594,1740595926878,-636.63,0.0003863,14]
[354615596,1740595926888,-1007.51,0.0003863,14]
[354615598,1740595926897,-500.0,0.0003863,14]
[354615600,1740595926907,-826.67,0.0003863,14]
[354615602,1740595926916,-532.65,0.0003863,14]
[354615604,1740595926926,-1255.98,0.0003863,14]
[354615606,1740595926936,-500.0,0.0003863,14]
[354615608,1740595926947,-1084.65,0.0003863,14]
[354615610,1740595926959,-510.04,0.0003863,14]
[354615612,1740595926969,-1101.48,0.0003863,14]
[354615614,1740595926980,-634.72,0.0003863,14]
[354615616,1740595926990,-842.79,0.0003863,14]
[354615618,1740595927004,-861.46,0.0003863,14]
[354615620,1740595927017,-500.0,0.0003863,14]
[354615622,1740595927029,-765.4,0.0003863,14]
[354615624,1740595927041,-604.9,0.0003863,14]
[354615626,1740595927052,-1116.67,0.0003863,14]
[354615628,1740595927062,-500.0,0.0003863,14]
[354615631,1740595927074,-1441.7,0.0003863,14]
[354615633,1740595927085,-754.28,0.0003863,14]
[354615635,1740595927096,-929.23,0.0003863,14]
[354615637,1740595927106,-1403.66,0.0003863,14]
[354615639,1740595927117,-718.11,0.0003863,14]
[354615641,1740595927131,-1217.5,0.0003863,14]
[354615643,1740595927141,-1107.15,0.0003863,14]
[354615645,1740595927151,-1834.12,0.0003863,14]
[354615647,1740595927162,-902.19,0.0003863,14]
[354615649,1740595927174,-561.55,0.0003863,14]
[354615651,1740595927185,-565.94,0.0003863,14]
[354615653,1740595927197,-1996.52,0.0003863,14]
[354615655,1740595927208,-500.0,0.0003863,14]
[354615657,1740595927218,-563.43,0.0003863,14]
[354615659,1740595927229,-1467.19,0.0003863,14]
[354615661,1740595927239,-1321.18,0.0003863,14]
[354615663,1740595927249,-1902.42,0.0003863,14]
[354615665,1740595927259,-500.0,0.0003863,14]
[354615667,1740595927269,-1140.97,0.0003863,14]
[354615669,1740595927279,-528.46,0.0003863,14]
[354615671,1740595927289,-500.0,0.0003863,14]
[354615673,1740595927299,-651.71,0.0003863,14]
[354615675,1740595927308,-1073.87,0.0003863,14]
[354615677,1740595927318,-1235.9,0.0003863,14]
[354615679,1740595927327,-583.0,0.0003863,14]
[354615681,1740595927337,-642.59,0.0003863,14]
[354615683,1740595927347,-500.0,0.0003863,14]
[354615685,1740595927357,-1162.07,0.0003863,14]
[354615687,1740595927367,-1175.03,0.0003863,14]
[354615689,1740595927382,-500.0,0.0003863,14]
[354615691,1740595927393,-1123.12,0.0003863,14]
[354615693,1740595927403,-1360.38,0.0003863,14]
[354615695,1740595927413,-990.04,0.0003863,14]
[354615697,1740595927423,-758.81,0.0003863,14]
[354615699,1740595927433,-500.0,0.0003863,14]
[354615701,1740595927443,-1858.11,0.0003863,14]
[354615703,1740595927453,-743.78,0.0003863,14]
[354615705,1740595927463,-836.2,0.0003863,14]
[354615707,1740595927472,-552.16,0.0003863,14]
[354615709,1740595927482,-957.01,0.0003863,14]
[354615711,1740595927492,-1949.61,0.0003863,14]
[354615713,1740595927501,-500.0,0.0003863,14]
[354615715,1740595927511,-1008.01,0.0003863,14]